bitfinex-derivatives/quotes_BTCF0:USTF0_20250125
["timestamp","ask_amount","ask_price","bid_price","bid_amount"]
[1737815382531,0.1997754,104610.0,104600.0,2.13859185]
[1737815382937,0.1997754,104610.0,104600.0,2.42517354]
[1737815383133,0.39185554,104620.0,104610.0,0.152969]
[1737815383452,0.39185554,104620.0,104610.0,0.57135485]
[1737815386948,0.59196843,104620.0,104610.0,0.85807864]
[1737815387847,0.59196843,104620.0,104610.0,2.35807864]
[1737815391157,0.59196843,104620.0,104610.0,2.07135485]
[1737815391158,0.39185554,104620.0,104610.0,2.07135485]
[1737815391959,0.44944139,104620.0,104610.0,2.07135485]
[1737815392266,0.39185554,104620.0,104610.0,2.07135485]
[1737815400672,0.25040538,104620.0,104610.0,2.07135485]
[1737815403173,0.35305489,104630.0,104620.0,0.152955]
[1737815403374,0.35305489,104630.0,104620.0,0.57134085]
[1737815403677,0.35305489,104630.0,104620.0,2.07134085]
[1737815403976,0.20011289,104630.0,104620.0,2.1289267]
[1737815406178,0.3361995,104640.0,104630.0,0.15294]
[1737815406375,0.4000995,104640.0,104630.0,0.21052585]
[1737815407281,0.4000995,104640.0,104630.0,0.15294]
[1737815407577,0.34251365,104640.0,104630.0,0.21052585]
[1737815407770,0.34251365,104640.0,104630.0,0.57132585]
[1737815408366,0.4000995,104640.0,104630.0,0.21052585]
[1737815408783,0.4000995,104640.0,104630.0,0.57132585]
[1737815409175,0.4000995,104640.0,104630.0,1.71052585]
[1737815409782,0.4000995,104640.0,104630.0,1.77742585]
[1737815410279,0.4000995,104640.0,104630.0,1.71984]
[1737815410879,0.34251365,104640.0,104630.0,2.13822585]
[1737815413179,0.33304105,104640.0,104630.0,2.13822585]
[1737815414073,0.33304105,104640.0,104630.0,2.14586585]
[1737815414780,0.26914105,104640.0,104630.0,2.14586585]
[1737815414979,0.26914105,104640.0,104630.0,2.20846585]
[1737815417671,0.18337838,104640.0,104630.0,2.20846585]
[1737815418684,0.03044338,104640.0,104630.0,2.20846585]
[1737815418884,0.00014338,104640.0,104630.0,2.20846585]
[1737815419083,0.00014338,104640.0,104630.0,0.70846585]
[1737815419576,0.00014338,104640.0,104630.0,2.20846585]
[1737815419772,0.00014338,104640.0,104630.0,2.27706585]
[1737815419977,0.00014338,104640.0,104630.0,2.30886585]
[1737815423783,0.23867867,104650.0,104640.0,0.152926]
[1737815423981,0.23867867,104650.0,104640.0,0.6288977]
[1737815428185,0.152916,104650.0,104640.0,0.6288977]
[1737815428689,0.152916,104650.0,104640.0,0.57131185]
[1737815430489,0.152916,104650.0,104640.0,0.5808983]
[1737815439396,0.152916,104650.0,104640.0,0.6477883]
[1737815440987,0.152916,104650.0,104640.0,0.70537415]
[1737815441194,0.152916,104650.0,104640.0,0.6477883]
[1737815441794,0.152916,104650.0,104640.0,0.70537415]
[1737815442293,0.152916,104650.0,104640.0,0.71301415]
[1737815446096,0.29385627,104660.0,104640.0,0.56008815]
[1737815446296,0.44675727,104660.0,104650.0,0.21049685]
[1737815446698,0.44675727,104660.0,104650.0,1.71049685]
[1737815448194,0.35315727,104660.0,104650.0,1.71049685]
[1737815448395,0.35315727,104660.0,104650.0,2.07129685]
[1737815448594,0.20025627,104660.0,104650.0,2.07129685]
[1737815449993,0.08590605,104660.0,104650.0,2.07129685]
[1737815450397,0.23880205,104660.0,104650.0,2.07129685]
[1737815451098,0.27170205,104660.0,104650.0,2.07129685]
[1737815452693,0.11880605,104660.0,104650.0,2.07129685]
[1737815456605,0.27170205,104660.0,104650.0,2.07129685]
[1737815460397,0.33460205,104660.0,104650.0,2.07129685]
[1737815461703,0.3921879,104660.0,104650.0,2.013711]
[1737815462102,0.33460205,104660.0,104650.0,2.07129685]
[1737815462709,0.33460205,104660.0,104650.0,1.71049685]
[1737815463312,0.33460205,104660.0,104650.0,1.652911]
[1737815463912,0.44895227,104660.0,104650.0,1.652911]
[1737815464709,0.33460205,104660.0,104650.0,1.652911]
[1737815464902,0.24883938,104660.0,104650.0,1.652911]
[1737815465506,0.24883938,104660.0,104650.0,1.719791]
[1737815466009,0.30642523,104660.0,104650.0,1.719791]
[1737815466512,0.24883938,104660.0,104650.0,1.719791]
[1737815466809,0.30642523,104660.0,104650.0,1.719791]
[1737815467306,0.31593502,104660.0,104650.0,1.719791]
[1737815468509,0.31593502,104660.0,104650.0,1.727431]
[1737815469510,0.51595908,104660.0,104650.0,1.727431]
[1737815471812,0.51595908,104660.0,104650.0,1.57452]
[1737815475820,0.57354493,104660.0,104650.0,1.57452]
[1737815476116,0.51595908,104660.0,104650.0,1.57452]
[1737815476409,0.93434493,104660.0,104650.0,0.07452]
[1737815480312,1.0486444,104660.0,104650.0,0.07452]
[1737815484625,1.10623025,104660.0,104650.0,0.07452]
[1737815484807,1.10623025,104660.0,104650.0,0.00693417]
[1737815485015,1.0486444,104660.0,104650.0,0.00693417]
[1737815485721,1.10623025,104660.0,104650.0,0.00693417]
[1737815486221,1.0486444,104660.0,104650.0,0.04308417]
[1737815487016,1.10623025,104660.0,104650.0,0.04308417]
[1737815487817,1.40623025,104660.0,104650.0,1.7e-07]
[1737815489122,1.40623025,104660.0,104650.0,0.00764017]
[1737815489322,1.11045992,104660.0,104630.0,0.00014338]
[1737815489622,0.9896967,104640.0,104630.0,0.00014338]
[1737815490125,1.0838967,104640.0,104630.0,0.00014338]
[1737815490522,1.0838967,104640.0,104630.0,0.00778338]
[1737815492127,1.34032945,104640.0,104630.0,0.00778338]
[1737815494720,1.34032945,104640.0,104630.0,0.00014338]
[1737815496130,1.3496604,104640.0,104630.0,0.00014338]
[1737815498131,1.3496604,104640.0,104630.0,0.00778338]
[1737815498525,1.20719776,104640.0,104630.0,0.00778338]
[1737815505928,1.3496604,104640.0,104630.0,0.00778338]
[1737815506725,1.40724625,104640.0,104630.0,0.00778338]
[1737815506920,1.3496604,104640.0,104630.0,0.00778338]
[1737815508726,1.40724625,104640.0,104630.0,0.00778338]
[1737815509320,1.3222627,104640.0,104630.0,0.00778338]
[1737815510027,1.26467685,104640.0,104630.0,0.00778338]
[1737815519342,1.09322765,104640.0,104630.0,0.00778338]
[1737815522839,1.29325171,104640.0,104630.0,0.00778338]
[1737815525139,1.22915171,104640.0,104630.0,0.00778338]
[1737815525345,1.17156586,104640.0,104630.0,0.00778338]
[1737815525840,1.22915171,104640.0,104630.0,0.00778338]
[1737815527148,1.19905171,104640.0,104630.0,0.00778338]
[1737815529942,1.17044894,104640.0,104630.0,0.00778338]
[1737815530743,1.11286309,104640.0,104630.0,0.00778338]
[1737815531048,1.17044894,104640.0,104630.0,0.00778338]
[1737815531245,1.11286309,104640.0,104630.0,0.00778338]
[1737815531546,1.17044894,104640.0,104630.0,0.00778338]
[1737815531739,1.11286309,104640.0,104630.0,0.00778338]
[1737815531933,1.11286309,104640.0,104630.0,0.10398338]
[1737815532245,1.05527724,104640.0,104630.0,0.16156923]
[1737815532445,1.04594629,104640.0,104630.0,0.31450923]
[1737815532840,1.04594629,104640.0,104630.0,1.81450923]
[1737815533247,1.10353214,104640.0,104630.0,1.75692338]
[1737815533741,1.10353214,104640.0,104630.0,0.10398338]
[1737815533946,1.16111799,104640.0,104630.0,0.10398338]
[1737815534246,1.16111799,104640.0,104630.0,1.60398338]
[1737815534848,1.16111799,104640.0,104630.0,0.10398338]
[1737815535747,1.16111799,104640.0,104630.0,0.00778338]
[1737815536147,1.13251353,104640.0,104630.0,0.00778338]
[1737815537039,1.16391353,104640.0,104630.0,0.00778338]
[1737815539550,1.27812733,104640.0,104630.0,0.00778338]
[1737815539951,1.34022733,104640.0,104630.0,0.00778338]
[1737815546456,1.28264148,104640.0,104630.0,0.00778338]
[1737815546650,1.34022733,104640.0,104630.0,0.00778338]
[1737815548056,1.34022733,104640.0,104630.0,1.50778338]
[1737815549553,1.28264148,104640.0,104630.0,1.50778338]
[1737815551064,1.28264148,104640.0,104630.0,0.00778338]
[1737815553263,1.13982465,104640.0,104630.0,0.00778338]
[1737815558165,0.9887388,104640.0,104630.0,0.00778338]
[1737815558362,0.9887388,104640.0,104630.0,0.09756923]
[1737815558567,0.9887388,104640.0,104630.0,1.78260923]
[1737815558767,0.1142138,104640.0,104630.0,1.78260923]
[1737815562069,0.19994363,104640.0,104630.0,1.78260923]
[1737815562669,0.19994363,104640.0,104630.0,2.14340923]
[1737815564875,0.08572983,104640.0,104630.0,2.14340923]
[1737815566377,0.08572983,104640.0,104630.0,2.1528979]
[1737815566677,0.08572983,104640.0,104630.0,0.7214579]
[1737815566879,0.08572983,104640.0,104630.0,0.77904375]
[1737815567077,0.08572983,104640.0,104630.0,2.2214579]
[1737815568677,0.71365863,104650.0,104630.0,2.35444323]
[1737815568880,0.71365863,104650.0,104640.0,0.21051185]
[1737815569177,0.71365863,104650.0,104640.0,0.24181185]
[1737815570474,0.71365863,104650.0,104640.0,0.24945185]
[1737815570670,0.19994363,104650.0,104640.0,0.6678377]
[1737815570864,0.14296021,104660.0,104640.0,0.5149117]
[1737815571069,0.14296021,104660.0,104650.0,0.60179785]
[1737815571270,0.14296021,104660.0,104650.0,0.63489785]
[1737815572671,0.68654307,104670.0,104650.0,1.98198585]
[1737815572976,0.68654307,104670.0,104660.0,0.21048285]
[1737815575875,0.51512178,104670.0,104660.0,0.21048285]
[1737815576578,0.57270763,104670.0,104660.0,0.152897]
[1737815577378,0.63440763,104670.0,104660.0,0.152897]
[1737815578678,0.57682178,104670.0,104660.0,0.21048285]
[1737815582582,0.57682178,104670.0,104660.0,0.21812285]
[1737815582780,0.06313378,104670.0,104660.0,0.57892285]
[1737815583486,0.21601678,104670.0,104660.0,0.57892285]
[1737815587386,0.63440263,104670.0,104660.0,0.160537]
[1737815587586,0.63440263,104670.0,104660.0,0.00764]
[1737815595189,0.63296885,104670.0,104660.0,0.00764]
[1737815597796,0.6905547,104670.0,104660.0,0.00764]
[1737815598702,0.152898,104660.0,104650.0,0.22881769]
[1737815598900,0.6602697,104660.0,104650.0,0.12901769]
[1737815599891,0.6602697,104660.0,104650.0,0.13665769]
[1737815601192,0.73637884,104660.0,104640.0,0.00014338]
[1737815601495,0.6288847,104650.0,104640.0,0.00014338]
[1737815601886,0.6596847,104650.0,104640.0,0.00014338]
[1737815602093,0.152942,104630.0,104620.0,0.00143362]
[1737815602294,0.57132785,104630.0,104620.0,0.00143362]
[1737815602597,0.57132785,104630.0,104620.0,0.00764]
[1737815602798,0.60212785,104630.0,104620.0,0.00764]
[1737815603793,0.66279379,104630.0,104620.0,0.00764]
[1737815607600,1.02359379,104630.0,104620.0,0.00764]
[1737815608098,1.03296961,104630.0,104620.0,0.00764]
[1737815609407,1.03296961,104630.0,104610.0,1.56544338]
[1737815609408,0.88002761,104630.0,104610.0,0.00014338]
[1737815609607,0.63320779,104620.0,104610.0,0.00014338]
[1737815610703,0.63320779,104620.0,104610.0,0.00778338]
[1737815617311,0.60150779,104620.0,104610.0,0.00778338]
[1737815617511,0.60150779,104620.0,104610.0,0.04068338]
[1737815618416,0.60150779,104620.0,104610.0,0.00778338]
[1737815623726,0.513756,104620.0,104610.0,0.00778338]
[1737815624218,0.60150779,104620.0,104610.0,0.00778338]
[1737815625323,0.60150779,104620.0,104610.0,0.03788338]
[1737815626822,0.513756,104620.0,104610.0,0.06828338]
[1737815627323,0.60150779,104620.0,104610.0,0.06828338]
[1737815628820,0.513756,104620.0,104610.0,0.06828338]
[1737815632918,0.62801287,104620.0,104610.0,0.06828338]
[1737815635019,0.26721287,104620.0,104610.0,0.22125438]
[1737815639725,0.26721287,104620.0,104610.0,0.27882895]
[1737815640030,0.26721287,104620.0,104610.0,1.77882895]
[1737815641729,0.26721287,104620.0,104610.0,1.72125438]
[1737815642632,0.152956,104620.0,104610.0,1.72125438]
[1737815643144,0.152956,104620.0,104610.0,1.80898944]
[1737815645250,0.8226986,104630.0,104610.0,1.65601844]
[1737815645439,0.9756446,104630.0,104620.0,0.27189106]
[1737815645635,0.6148446,104630.0,104620.0,0.63269106]
[1737815646045,0.6148446,104630.0,104620.0,0.27189106]
[1737815646748,0.25685418,104630.0,104620.0,0.64033106]
[1737815647336,0.25685418,104630.0,104620.0,2.14033106]
[1737815647537,0.65647569,104640.0,104620.0,1.98737506]
[1737815647745,0.65647569,104640.0,104630.0,0.30397706]
[1737815651345,0.65647569,104640.0,104630.0,0.216242]
[1737815651553,0.65647569,104640.0,104630.0,0.183042]
[1737815652649,0.51387838,104640.0,104630.0,0.183042]
[1737815653445,0.15307838,104640.0,104630.0,0.183042]
[1737815654553,0.15307838,104640.0,104630.0,0.543842]
[1737815656548,0.15307838,104640.0,104630.0,0.63157706]
[1737815658047,0.15307838,104640.0,104630.0,0.543842]
[1737815658954,0.15307838,104640.0,104630.0,0.63157706]
[1737815659661,0.15307838,104640.0,104630.0,2.13157706]
[1737815660650,0.15307838,104640.0,104630.0,2.16307706]
[1737815661351,0.15307838,104640.0,104630.0,2.39169279]
[1737815666160,0.15307838,104640.0,104630.0,2.31159773]
[1737815668258,0.15307838,104640.0,104630.0,2.28009773]
[1737815668861,0.15307838,104640.0,104630.0,2.36783279]
[1737815669463,0.15307838,104640.0,104630.0,2.39893279]
[1737815669664,0.15307838,104640.0,104630.0,2.36874513]
[1737815671671,0.15307838,104640.0,104630.0,2.39889475]
[1737815672370,0.15307838,104640.0,104630.0,2.46745475]
[1737815674572,0.00014338,104640.0,104630.0,2.46745475]
[1737815677775,0.00014338,104640.0,104630.0,2.43693289]
[1737815678877,0.15307038,104640.0,104630.0,2.43693289]
[1737815682881,0.15307038,104640.0,104630.0,2.52462991]
[1737815685479,0.15307038,104640.0,104630.0,2.43693289]
[1737815687186,0.15307038,104640.0,104630.0,2.52462991]
[1737815687382,0.15307038,104640.0,104630.0,2.43693289]
[1737815691889,0.15307038,104640.0,104630.0,2.49448544]
[1737815691890,0.23896503,104640.0,104630.0,2.49448544]
[1737815692188,0.23896503,104640.0,104630.0,2.43693289]
[1737815703085,0.23896503,104640.0,104630.0,2.49448544]
[1737815705890,0.08603803,104640.0,104630.0,1.05203799]
[1737815706192,0.152918,104650.0,104640.0,0.152927]
[1737815706380,0.152918,104650.0,104640.0,1.7998321]
[1737815707590,0.152918,104650.0,104640.0,1.8074721]
[1737815707787,0.152918,104650.0,104640.0,1.74991955]
[1737815710896,0.26744349,104650.0,104640.0,2.49599126]
[1737815712388,0.26744349,104650.0,104640.0,2.55354381]
[1737815712590,0.26744349,104650.0,104640.0,2.56311001]
[1737815713794,0.26744349,104650.0,104640.0,2.50555746]
[1737815714890,0.152918,104650.0,104640.0,1.98876758]
[1737815717287,0.21047055,104650.0,104640.0,0.42164883]
[1737815717487,0.24207055,104650.0,104640.0,0.42164883]
[1737815718397,0.24207055,104650.0,104640.0,0.70743972]
[1737815719199,0.24207055,104650.0,104640.0,0.55451272]
[1737815719389,0.60287055,104650.0,104640.0,0.52271272]
[1737815719591,0.66697055,104650.0,104640.0,0.52271272]
[1737815722689,0.98068463,104650.0,104640.0,0.00764]
[1737815726491,0.86712041,104650.0,104640.0,0.00764]
[1737815727003,0.80956786,104650.0,104640.0,0.00764]
[1737815727300,0.86712041,104650.0,104640.0,0.00764]
[1737815727597,0.80956786,104650.0,104640.0,0.00764]
[1737815727796,0.86712041,104650.0,104640.0,0.00764]
[1737815730105,1.03823718,104650.0,104640.0,0.00764]
[1737815730398,0.98068463,104650.0,104640.0,0.00764]
[1737815733599,1.03823718,104650.0,104640.0,0.00764]
[1737815734999,0.98068463,104650.0,104640.0,0.00764]
[1737815736597,0.80956786,104650.0,104640.0,0.00764]
[1737815740915,0.98068463,104650.0,104640.0,0.00764]
[1737815741113,1.03823718,104650.0,104640.0,0.00764]
[1737815748313,0.89563987,104650.0,104640.0,0.00764]
[1737815758231,0.7245231,104650.0,104640.0,0.00764]
[1737815760439,0.152927,104640.0,104630.0,0.03314338]
[1737815760639,0.152942,104630.0,104620.0,0.40118531]
[1737815760835,0.6288471,104630.0,104620.0,0.40118531]
[1737815761030,0.6606471,104630.0,104620.0,0.40118531]
[1737815761739,0.6606471,104630.0,104620.0,0.17622348]
[1737815764239,0.83229503,104630.0,104620.0,0.00432]
[1737815764843,0.74294248,104630.0,104620.0,0.00432]
[1737815767544,0.71427018,104630.0,104620.0,0.00432]
[1737815767936,0.7239155,104630.0,104620.0,0.00432]
[1737815768137,0.78146805,104630.0,104620.0,0.00432]
[1737815769148,0.81296805,104630.0,104620.0,0.00432]
[1737815771046,0.84164035,104630.0,104620.0,0.00432]
[1737815775049,0.66999242,104630.0,104620.0,0.00432]
[1737815777748,0.73289242,104630.0,104620.0,0.00432]
[1737815778339,0.57995042,104630.0,104610.0,0.09804338]
[1737815778544,0.6288611,104620.0,104610.0,0.09804338]
[1737815779449,0.6288611,104620.0,104610.0,0.06504338]
[1737815783259,0.77179829,104620.0,104610.0,0.06504338]
[1737815786755,0.80050903,104620.0,104610.0,0.06504338]
[1737815788057,0.80050903,104620.0,104610.0,0.03244338]
[1737815791252,0.80050903,104620.0,104610.0,0.00014338]
[1737815795061,0.74295648,104620.0,104610.0,0.03134338]
[1737815795451,0.80050903,104620.0,104610.0,0.03134338]
[1737815799563,0.77173763,104620.0,104610.0,0.03134338]
[1737815803063,0.77173763,104620.0,104610.0,0.00014338]
[1737815809564,0.82929018,104620.0,104610.0,0.00014338]
[1737815809764,0.77173763,104620.0,104610.0,0.00014338]
[1737815810366,0.82929018,104620.0,104610.0,0.00014338]
[1737815812878,0.85806158,104620.0,104610.0,0.00014338]
[1737815813769,0.92662158,104620.0,104610.0,0.00014338]
[1737815817878,0.75497365,104620.0,104610.0,0.00014338]
[1737815820678,0.60201765,104620.0,104600.0,0.00010411]
[1737815820875,0.6617761,104610.0,104600.0,0.00010411]
[1737815821778,0.6617761,104610.0,104590.0,0.20444686]
[1737815821779,0.152986,104600.0,104590.0,0.20444686]
[1737815821980,0.6288911,104600.0,104590.0,0.20444686]
[1737815824582,0.6288911,104600.0,104590.0,0.20544686]
[1737815824977,0.63824351,104600.0,104590.0,0.20544686]
[1737815826481,0.75253298,104600.0,104590.0,0.03354338]
[1737815826678,0.89539482,104600.0,104590.0,0.03354338]
[1737815830079,0.75253298,104600.0,104590.0,0.20544686]
[1737815833689,0.69498043,104600.0,104590.0,0.20544686]
[1737815834190,0.83784227,104600.0,104590.0,0.20544686]
[1737815836283,0.89539482,104600.0,104590.0,0.20544686]
[1737815839392,0.78110535,104600.0,104590.0,0.20544686]
[1737815845593,0.78110535,104600.0,104590.0,0.17304686]
[1737815845793,0.81390535,104600.0,104590.0,0.17304686]
[1737815853495,0.81390535,104600.0,104590.0,0.00114338]
[1737815853496,0.98533955,104600.0,104590.0,0.00114338]
[1737815857395,0.84247771,104600.0,104590.0,0.00114338]
[1737815861399,0.75212516,104600.0,104590.0,0.00114338]
[1737815861599,0.52313841,104600.0,104590.0,0.03274338]
[1737815861804,0.58069096,104600.0,104590.0,0.03274338]
[1737815864805,0.83831542,104600.0,104590.0,0.20464686]
[1737815865316,0.89586797,104600.0,104590.0,0.20464686]
[1737815866506,0.83831542,104600.0,104590.0,0.20464686]
[1737815867803,0.89586797,104600.0,104590.0,0.20464686]
[1737815868408,0.89586797,104600.0,104590.0,0.43392869]
[1737815868611,0.83831542,104600.0,104590.0,0.43392869]
[1737815871809,0.69519072,104600.0,104590.0,0.20464686]
[1737815874514,0.69519072,104600.0,104590.0,0.35764686]
[1737815874711,0.69519072,104600.0,104590.0,0.36712013]
[1737815878110,0.69519072,104600.0,104590.0,0.35764686]
[1737815878510,0.69519072,104600.0,104590.0,0.20464686]
[1737815879812,0.75274327,104600.0,104590.0,0.20464686]
[1737815881120,0.69519072,104600.0,104590.0,0.20464686]
[1737815882015,0.69519072,104600.0,104590.0,1.70464686]
[1737815883718,0.78102723,104600.0,104590.0,0.43392869]
[1737815889034,0.78102723,104600.0,104590.0,0.40232869]
[1737815891336,0.81162723,104600.0,104590.0,0.40232869]
[1737815891535,0.86917978,104600.0,104590.0,0.40232869]
[1737815893038,0.78334327,104600.0,104590.0,0.40232869]
[1737815896344,0.92646797,104600.0,104590.0,0.40232869]
[1737815896532,0.86891542,104600.0,104590.0,0.40232869]
[1737815898046,0.92646797,104600.0,104590.0,0.40232869]
[1737815900547,0.72579072,104600.0,104590.0,0.40232869]
[1737815901341,0.78334327,104600.0,104590.0,0.40232869]
[1737815909356,0.98340241,104600.0,104590.0,0.00114338]
[1737815918267,0.81196821,104600.0,104590.0,0.00114338]
[1737815923560,0.84027771,104600.0,104590.0,0.00114338]
[1737815934669,0.89783026,104600.0,104590.0,0.00114338]
[1737815934865,0.84027771,104600.0,104590.0,0.00114338]
[1737815935669,0.89783026,104600.0,104590.0,0.00114338]
[1737815935869,0.84027771,104600.0,104590.0,0.00114338]
[1737815936063,0.89783026,104600.0,104590.0,0.00114338]
[1737815936766,0.89783026,104600.0,104590.0,0.00014338]
[1737815937073,0.89783026,104600.0,104590.0,1.50014338]
[1737815937273,0.89783026,104600.0,104590.0,0.00014338]
[1737815940185,0.74484426,104600.0,104580.0,0.40118531]
[1737815940370,0.6601051,104590.0,104580.0,0.40118531]
[1737815941974,0.153015,104580.0,104570.0,0.46482869]
[1737815942276,0.6289201,104580.0,104570.0,0.46482869]
[1737815943980,0.6289201,104580.0,104570.0,0.46582869]
[1737815944872,0.57136755,104580.0,104570.0,0.46582869]
[1737815945877,0.6289201,104580.0,104570.0,0.46582869]
[1737815946080,0.57136755,104580.0,104570.0,0.46582869]
[1737815946775,0.57136755,104580.0,104570.0,0.23654686]
[1737815946776,0.68579109,104580.0,104570.0,0.23654686]
[1737815948179,0.6952564,104580.0,104570.0,0.23654686]
[1737815952182,0.26743854,104580.0,104570.0,0.44712941]
[1737815952874,0.26743854,104580.0,104570.0,0.38957686]
[1737815953067,0.32499109,104580.0,104570.0,0.38957686]
[1737815953275,0.32499109,104580.0,104570.0,0.23654686]
[1737815954275,0.29637163,104580.0,104570.0,0.46582869]
[1737815954676,0.23881908,104580.0,104570.0,0.46582869]
[1737815956080,0.29637163,104580.0,104570.0,0.46582869]
[1737815956382,0.23881908,104580.0,104570.0,0.46582869]
[1737815956585,0.29637163,104580.0,104570.0,0.46582869]
[1737815956973,0.23881908,104580.0,104570.0,0.46582869]
[1737815957173,0.29637163,104580.0,104570.0,0.46582869]
[1737815958484,0.71472418,104580.0,104570.0,0.46582869]
[1737815959176,0.65717163,104580.0,104570.0,0.46582869]
[1737815959375,0.71472418,104580.0,104570.0,0.46582869]
[1737815961786,0.65717163,104580.0,104570.0,0.46582869]
[1737815961987,0.68579109,104580.0,104570.0,0.23654686]
[1737815962187,0.74334364,104580.0,104570.0,0.23654686]
[1737815965183,0.74334364,104580.0,104570.0,0.46582869]
[1737815965382,0.68579109,104580.0,104570.0,0.46582869]
[1737815966086,0.74334364,104580.0,104570.0,0.46582869]
[1737815967987,0.74334364,104580.0,104570.0,0.43422869]
[1737815968482,0.74334364,104580.0,104570.0,0.40232869]
[1737815969782,0.91657307,104580.0,104570.0,0.17304686]
[1737815977586,0.80214953,104580.0,104570.0,0.00114338]
[1737815978997,0.85970208,104580.0,104570.0,0.00114338]
[1737815979291,0.21058255,104570.0,104560.0,0.40118531]
[1737815979500,0.63738255,104570.0,104560.0,0.40118531]
[1737815980303,0.6949351,104570.0,104560.0,0.40118531]
[1737815982601,0.68493453,104570.0,104550.0,0.40118531]
[1737815982801,0.6289491,104560.0,104550.0,0.40118531]
[1737815985101,0.6605491,104560.0,104550.0,0.40118531]
[1737815985405,0.153059,104550.0,104540.0,0.28579089]
[1737815985597,0.6936641,104550.0,104540.0,0.28579089]
[1737815988602,0.6936641,104550.0,104530.0,0.34294907]
[1737815988603,0.153087,104540.0,104520.0,0.37759089]
[1737815988905,0.57144055,104530.0,104520.0,0.37759089]
[1737815990303,0.57144055,104530.0,104520.0,0.31709089]
[1737815991402,0.93224055,104530.0,104520.0,0.31709089]
[1737815991605,1.0225931,104530.0,104520.0,0.31709089]
[1737815992201,1.0548931,104530.0,104520.0,0.28579089]
[1737815994604,1.06464047,104530.0,104520.0,0.28579089]
[1737815995197,0.153112,104520.0,104500.0,0.2945]
[1737815995393,0.41835255,104510.0,104500.0,0.2945]
[1737815997400,0.57146955,104510.0,104500.0,0.2945]
[1737815999003,0.6290221,104510.0,104500.0,0.2945]
[1737815999303,0.57146955,104510.0,104500.0,0.2945]
[1737816002707,0.6290221,104510.0,104500.0,0.2945]
[1737816003912,0.58124991,104510.0,104500.0,0.2945]
[1737816005805,0.22044991,104510.0,104500.0,0.2945]
[1737816006106,0.94204991,104510.0,104500.0,0.2945]
[1737816006297,0.99960246,104510.0,104500.0,0.2945]
[1737816006498,0.94204991,104510.0,104500.0,0.2945]
[1737816006907,0.99960246,104510.0,104500.0,0.2945]
[1737816007411,0.99960246,104510.0,104500.0,0.2634]
[1737816007909,1.02990246,104510.0,104500.0,0.2634]
[1737816010310,1.02990246,104510.0,104500.0,0.2302]
[1737816010608,1.02990246,104510.0,104500.0,0.2]
[1737816010816,1.02990246,104510.0,104500.0,0.07916009]
[1737816011117,1.06000246,104510.0,104500.0,0.07916009]
[1737816016319,1.17420345,104510.0,104500.0,0.07916009]
[1737816018620,1.0865509,104510.0,104500.0,0.07916009]
[1737816018924,1.14410345,104510.0,104500.0,0.11016009]
[1737816020129,1.14410345,104510.0,104500.0,0.11916009]
[1737816021226,1.0562509,104510.0,104500.0,0.11916009]
[1737816021526,1.0562509,104510.0,104500.0,0.15226009]
[1737816021727,1.08507934,104510.0,104500.0,0.15226009]
[1737816022531,1.08507934,104510.0,104500.0,0.30539209]
[1737816022722,1.08507934,104510.0,104500.0,0.30572958]
[1737816024928,0.92218198,104510.0,104500.0,0.30572958]
[1737816025330,0.92218198,104510.0,104500.0,1.80572958]
[1737816025833,0.77915255,104510.0,104500.0,1.80572958]
[1737816027935,0.93226955,104510.0,104500.0,1.80572958]
[1737816029239,1.13216445,104510.0,104500.0,1.80572958]
[1737816031433,0.1998949,104510.0,104500.0,1.86328213]
[1737816032139,0.25744745,104510.0,104500.0,1.80572958]
[1737816032341,0.1998949,104510.0,104500.0,1.86328213]
[1737816033644,0.08566924,104510.0,104500.0,1.86328213]
[1737816036140,0.08566924,104510.0,104500.0,2.28163468]
[1737816037347,0.23892062,104520.0,104510.0,0.153117]
[1737816037545,0.23892062,104520.0,104510.0,0.60476955]
[1737816040145,0.23892062,104520.0,104510.0,0.60676955]
[1737816040744,0.23892062,104520.0,104510.0,2.10676955]
[1737816041048,0.15325138,104520.0,104510.0,2.10676955]
[1737816041249,0.00014338,104520.0,104510.0,2.10676955]
[1737816042436,0.00014338,104520.0,104510.0,2.1164981]
[1737816042644,0.15324638,104520.0,104510.0,2.1164981]
[1737816042844,0.21079893,104520.0,104510.0,2.05894555]
[1737816046453,0.15324638,104520.0,104510.0,2.05894555]
[1737816047353,0.21079893,104520.0,104510.0,2.05894555]
[1737816047554,0.15324638,104520.0,104510.0,2.1164981]
[1737816051547,0.15324638,104520.0,104510.0,2.34535513]
[1737816053751,0.15324638,104520.0,104510.0,2.28780258]
[1737816053951,0.15324638,104520.0,104510.0,2.34535513]
[1737816055048,0.21079893,104520.0,104510.0,2.28780258]
[1737816056348,0.15324638,104520.0,104510.0,2.28780258]
[1737816056957,0.15324638,104520.0,104510.0,2.32967136]
[1737816060358,0.18534638,104520.0,104510.0,2.32967136]
[1737816060862,0.18534638,104520.0,104510.0,2.61546225]
[1737816061064,0.18534638,104520.0,104510.0,2.57359347]
[1737816061268,0.24289893,104520.0,104510.0,2.57359347]
[1737816062166,0.18534638,104520.0,104510.0,2.57359347]
[1737816062858,0.24289893,104520.0,104510.0,2.57359347]
[1737816063163,0.60369893,104520.0,104510.0,2.17949347]
[1737816064167,0.68936817,104520.0,104510.0,2.17949347]
[1737816064663,0.32856817,104520.0,104510.0,2.17949347]
[1737816064863,0.32856817,104520.0,104510.0,2.54029347]
[1737816065567,0.32856817,104520.0,104510.0,2.53056492]
[1737816068471,0.27101562,104520.0,104510.0,2.53056492]
[1737816068663,0.27101562,104520.0,104510.0,2.58811747]
[1737816068868,0.27101562,104520.0,104510.0,2.61911747]
[1737816069272,0.23891562,104520.0,104510.0,2.61911747]
[1737816069676,0.08581262,104520.0,104510.0,2.61911747]
[1737816070072,0.08581262,104520.0,104510.0,2.66098683]
[1737816071475,0.08581262,104520.0,104510.0,2.66264711]
[1737816072272,0.08581262,104520.0,104510.0,2.62077775]
[1737816073364,0.08581262,104520.0,104510.0,2.63017785]
[1737816074766,0.08581262,104520.0,104510.0,2.67204706]
[1737816076166,0.08581262,104520.0,104510.0,1.17204706]
[1737816076674,0.08581262,104520.0,104510.0,2.71139353]
[1737816078274,0.31466474,104540.0,104520.0,0.153103]
[1737816078463,0.31466474,104540.0,104530.0,0.63214055]
[1737816078864,0.2574206,104540.0,104530.0,0.63214055]
[1737816079867,0.2574206,104540.0,104530.0,0.6740013]
[1737816080874,0.2574206,104540.0,104530.0,0.63214055]
[1737816082173,0.68564569,104550.0,104530.0,2.83913177]
[1737816082174,0.57156293,104550.0,104530.0,2.83913177]
[1737816082367,0.57156293,104550.0,104540.0,0.153074]
[1737816083973,0.51401038,104550.0,104540.0,0.21062655]
[1737816084473,0.21076293,104550.0,104540.0,0.153074]
[1737816086080,0.153074,104540.0,104530.0,2.94436302]
[1737816086284,0.153074,104540.0,104530.0,3.00191557]
[1737816086576,0.21062655,104540.0,104530.0,2.59988367]
[1737816086772,0.2993791,104540.0,104530.0,0.66868387]
[1737816086973,0.24182655,104540.0,104530.0,0.66868387]
[1737816087166,0.6601791,104540.0,104530.0,0.51559987]